bitfinex-derivatives/quotes_BNBF0:USTF0_20251220
["timestamp","ask_amount","ask_price","bid_price","bid_amount"]
[1766269357208,0.66577672,851.54,850.81,0.20434347]
[1766269357407,0.66577672,851.53,850.81,0.20434347]
[1766269357607,0.66577672,851.52,850.81,0.20434347]
[1766269357808,0.66577672,851.51,850.81,0.20434347]
[1766269358008,0.66577672,851.5,850.81,0.20434347]
[1766269358210,0.66577672,851.49,850.81,0.20434347]
[1766269358506,0.66577672,851.48,850.81,0.20434347]
[1766269358707,0.66577672,851.47,850.81,0.20434347]
[1766269359003,0.66577672,851.46,850.81,0.20434347]
[1766269359204,0.66577672,851.45,850.81,0.20434347]
[1766269359404,0.66577672,851.44,850.81,0.20434347]
[1766269359704,0.66577672,851.43,850.81,0.20434347]
[1766269359903,0.66577672,851.42,850.81,0.20434347]
[1766269360207,4.99047836,851.69,850.81,0.20434347]
[1766269360408,1.54080828,851.68,850.81,0.20434347]
[1766269360605,0.66629317,851.67,850.81,0.20434347]
[1766269360808,0.66629317,851.66,850.81,0.20434347]
[1766269361008,0.66629317,851.65,850.81,0.20434347]
[1766269361203,0.66629317,851.64,850.81,0.20434347]
[1766269361410,0.66629317,851.63,850.81,0.20434347]
[1766269361608,0.66629317,851.62,850.81,0.20434347]
[1766269361809,0.66629317,851.61,850.81,0.20434347]
[1766269362114,0.66629317,851.6,850.81,0.20434347]
[1766269362409,0.66629317,851.59,850.81,0.20434347]
[1766269362610,0.66629317,851.58,850.81,0.20434347]
[1766269362907,0.66629317,851.57,850.81,0.20434347]
[1766269363206,0.66629317,851.56,850.81,0.20434347]
[1766269363506,0.66629317,851.55,850.81,0.20434347]
[1766269363707,0.66629317,851.54,850.81,0.20434347]
[1766269363906,0.66629317,851.53,850.81,0.20434347]
[1766269364110,0.66629317,851.52,850.81,0.20434347]
[1766269364311,0.66629317,851.51,850.81,0.20434347]
[1766269364606,0.66629317,851.5,850.81,0.20434347]
[1766269364807,0.66629317,851.49,850.81,0.20434347]
[1766269365012,0.66629317,851.48,850.81,0.20434347]
[1766269365212,0.66629317,851.47,850.81,0.20434347]
[1766269365511,0.66629317,851.46,850.81,0.20434347]
[1766269365708,0.66629317,851.45,850.81,0.20434347]
[1766269365906,0.66629317,851.44,850.81,0.20434347]
[1766269366108,0.66629317,851.43,850.81,0.20434347]
[1766269366311,0.66629317,851.42,850.81,0.20434347]
[1766269366510,0.66629317,851.41,850.81,0.20434347]
[1766269366708,0.66629317,851.4,850.81,0.20434347]
[1766269366912,0.66629317,851.39,850.81,0.20434347]
[1766269367109,0.87451511,851.66,850.81,0.20434347]
[1766269367314,0.6665851,851.65,850.81,0.20434347]
[1766269367611,0.6665851,851.64,850.81,0.20434347]
[1766269367809,0.6665851,851.63,850.81,0.20434347]
[1766269368013,0.6665851,851.62,850.81,0.20434347]
[1766269368210,0.6665851,851.61,850.81,0.20434347]
[1766269368509,0.6665851,851.6,850.81,0.20434347]
[1766269368714,0.6665851,851.59,850.81,0.20434347]
[1766269368909,0.6665851,851.58,850.81,0.20434347]
[1766269369114,0.6665851,851.57,850.81,0.20434347]
[1766269369311,0.6665851,851.56,850.81,0.20434347]
[1766269369514,0.6665851,851.55,850.81,0.20434347]
[1766269369717,0.6665851,851.54,850.81,0.20434347]
[1766269369913,0.6665851,851.53,850.81,0.20434347]
[1766269370118,0.6665851,851.52,850.81,0.20434347]
[1766269370418,0.6665851,851.51,850.81,0.20434347]
[1766269370718,0.6665851,851.5,850.81,0.20434347]
[1766269370917,0.6665851,851.49,850.81,0.20434347]
[1766269371115,0.6665851,851.48,850.81,0.20434347]
[1766269371318,0.6665851,851.47,850.81,0.20434347]
[1766269371517,0.6665851,851.46,850.81,0.20434347]
[1766269371715,0.6665851,851.45,850.81,0.20434347]
[1766269371913,0.6665851,851.44,850.81,0.20434347]
[1766269372113,0.6665851,851.43,850.81,0.20434347]
[1766269372313,0.6665851,851.42,850.81,0.20434347]
[1766269372515,0.6665851,851.41,850.81,0.20434347]
[1766269372719,0.6665851,851.4,850.81,0.20434347]
[1766269373019,0.6665851,851.39,850.81,0.20434347]
[1766269373220,0.6665851,851.38,850.81,0.20434347]
[1766269373417,0.87451511,851.65,850.81,0.20434347]
[1766269373719,0.66706777,851.64,850.81,0.20434347]
[1766269373922,0.66706777,851.63,850.81,0.20434347]
[1766269374122,0.66706777,851.62,850.81,0.20434347]
[1766269374320,4.11596325,851.69,850.81,0.20434347]
[1766269374518,0.87630639,851.65,850.81,0.20434347]
[1766269374716,0.66708678,851.64,850.81,0.20434347]
[1766269375018,0.66708678,851.63,850.81,0.20434347]
[1766269375216,0.66708678,851.62,850.81,0.20434347]
[1766269375420,0.66708678,851.61,850.81,0.20434347]
[1766269375622,0.66708678,851.6,850.81,0.20434347]
[1766269375818,0.66708678,851.59,850.81,0.20434347]
[1766269376120,0.66708678,851.58,850.81,0.20434347]
[1766269376323,0.66708678,851.57,850.81,0.20434347]
[1766269376524,0.66708678,851.56,850.81,0.20434347]
[1766269376724,0.66708678,851.55,850.81,0.20434347]
[1766269376924,0.66708678,851.54,850.81,0.20434347]
[1766269377121,0.66708678,851.53,850.81,0.20434347]
[1766269377327,0.66708678,851.52,850.81,0.20434347]
[1766269377622,0.66708678,851.51,850.81,0.20434347]
[1766269377826,0.66708678,851.5,850.81,0.20434347]
[1766269378027,0.66708678,851.49,850.81,0.20434347]
[1766269378324,0.66708678,851.48,850.81,0.20434347]
[1766269378624,0.66708678,851.47,850.81,0.20434347]
[1766269378826,0.66708678,851.46,850.81,0.20434347]
[1766269379027,0.66708678,851.45,850.81,0.20434347]
[1766269379227,0.66708678,851.44,850.81,0.20434347]
[1766269379523,0.66708678,851.43,850.81,0.20434347]
[1766269379726,0.66708678,851.42,850.81,0.20434347]
[1766269379923,0.66708678,851.41,850.81,0.20434347]
[1766269380122,0.87630639,851.64,850.81,0.20434347]
[1766269380123,0.66708678,851.4,850.81,0.20434347]
[1766269380325,0.87630639,851.64,850.81,0.20434347]
[1766269380326,0.66708678,851.39,850.81,0.20434347]
[1766269380623,0.66708678,851.38,850.81,0.20434347]
[1766269380824,0.66708678,851.37,850.81,0.20434347]
[1766269381022,0.87630639,851.64,850.81,0.20434347]
[1766269381325,0.66720374,851.63,850.81,0.20434347]
[1766269381524,0.66720374,851.62,850.81,0.20434347]
[1766269381726,0.66720374,851.61,850.81,0.20434347]
[1766269381923,0.66720374,851.6,850.81,0.20434347]
[1766269382124,0.66720374,851.59,850.81,0.20434347]
[1766269382323,0.66720374,851.58,850.81,0.20434347]
[1766269382528,0.66720374,851.57,850.81,0.20434347]
[1766269382724,0.66720374,851.56,850.81,0.20434347]
[1766269382928,0.66720374,851.55,850.81,0.20434347]
[1766269383129,0.66720374,851.54,850.81,0.20434347]
[1766269383329,0.66720374,851.53,850.81,0.20434347]
[1766269383529,0.66720374,851.52,850.81,0.20434347]
[1766269383724,0.87630639,851.63,850.81,0.20434347]
[1766269383725,0.66720374,851.51,850.81,0.20434347]
[1766269383923,0.66720374,851.5,850.81,0.20434347]
[1766269384126,0.66720374,851.49,850.81,0.20434347]
[1766269384325,0.66720374,851.48,850.81,0.20434347]
[1766269384524,0.66720374,851.47,850.81,0.20434347]
[1766269384729,0.66720374,851.46,850.81,0.20434347]
[1766269384923,0.66720374,851.45,850.81,0.20434347]
[1766269385127,0.66720374,851.44,850.81,0.20434347]
[1766269385328,0.66720374,851.43,850.81,0.20434347]
[1766269385526,0.66720374,851.42,850.81,0.20434347]
[1766269385725,0.66720374,851.41,850.81,0.20434347]
[1766269385930,0.66720374,851.4,850.81,0.20434347]
[1766269386129,0.66720374,851.39,850.81,0.20434347]
[1766269386329,0.66720374,851.38,850.81,0.20434347]
[1766269386626,0.66720374,851.37,850.81,0.20434347]
[1766269386829,0.66720374,851.36,850.81,0.20434347]
[1766269387029,0.66720374,851.35,850.81,0.20434347]
[1766269387230,0.87630639,851.62,850.81,0.20434347]
[1766269387431,0.66750566,851.61,850.81,0.20434347]
[1766269387732,0.66750566,851.6,850.81,0.20434347]
[1766269387930,0.66750566,851.59,850.81,0.20434347]
[1766269388130,0.66750566,851.58,850.81,0.20434347]
[1766269388328,0.66750566,851.57,850.81,0.20434347]
[1766269388533,0.66750566,851.56,850.81,0.20434347]
[1766269388830,0.66750566,851.55,850.81,0.20434347]
[1766269389030,0.66750566,851.54,850.81,0.20434347]
[1766269389228,0.66750566,851.53,850.81,0.20434347]
[1766269389433,0.66750566,851.52,850.81,0.20434347]
[1766269389633,0.66750566,851.51,850.81,0.20434347]
[1766269389830,0.66750566,851.5,850.81,0.20434347]
[1766269390131,0.66750566,851.49,850.81,0.20434347]
[1766269390432,0.66750566,851.48,850.81,0.20434347]
[1766269390632,0.66750566,851.47,850.81,0.20434347]
[1766269390830,0.66750566,851.46,850.81,0.20434347]
[1766269391031,0.87630639,851.62,850.81,0.20434347]
[1766269391032,0.66750566,851.45,850.81,0.20434347]
[1766269391233,0.66750566,851.44,850.81,0.20434347]
[1766269391434,0.66750566,851.43,850.81,0.20434347]
[1766269391632,0.66750566,851.42,850.81,0.20434347]
[1766269391833,0.66750566,851.41,850.81,0.20434347]
[1766269392135,0.66750566,851.4,850.81,0.20434347]
[1766269392431,0.66750566,851.39,850.81,0.20434347]
[1766269392636,0.66750566,851.38,850.81,0.20434347]
[1766269392832,0.66750566,851.37,850.81,0.20434347]
[1766269393037,0.66750566,851.36,850.81,0.20434347]
[1766269393237,0.66750566,851.35,850.81,0.20434347]
[1766269393438,0.87630639,851.62,850.81,0.20434347]
[1766269393638,0.66750626,851.61,850.81,0.20434347]
[1766269393933,0.66750626,851.6,850.81,0.20434347]
[1766269394134,0.66750626,851.59,850.81,0.20434347]
[1766269394341,0.66750626,851.58,850.81,0.20434347]
[1766269394538,0.66750626,851.57,850.81,0.20434347]
[1766269394739,0.66750626,851.56,850.81,0.20434347]
[1766269394936,0.66750626,851.55,850.81,0.20434347]
[1766269395240,0.66750626,851.54,850.81,0.20434347]
[1766269395439,0.66750626,851.53,850.81,0.20434347]
[1766269395638,0.66750626,851.52,850.81,0.20434347]
[1766269395838,0.66750626,851.51,850.81,0.20434347]
[1766269396036,0.66750626,851.5,850.81,0.20434347]
[1766269396235,0.66750626,851.49,850.81,0.20434347]
[1766269396441,0.66750626,851.48,850.81,0.20434347]
[1766269396735,0.66750626,851.47,850.81,0.20434347]
[1766269396939,0.66750626,851.46,850.81,0.20434347]
[1766269397140,0.66750626,851.45,850.81,0.20434347]
[1766269397440,0.66750626,851.44,850.81,0.20434347]
[1766269397640,0.66750626,851.43,850.81,0.20434347]
[1766269397840,0.66750626,851.42,850.81,0.20434347]
[1766269398041,0.66750626,851.41,850.81,0.20434347]
[1766269398238,0.66750626,851.4,850.81,0.20434347]
[1766269398437,0.66750626,851.39,850.81,0.20434347]
[1766269398637,0.66750626,851.38,850.81,0.20434347]
[1766269398937,0.66750626,851.37,850.81,0.20434347]
[1766269399140,0.66750626,851.36,850.81,0.20434347]
[1766269399339,0.66750626,851.35,850.81,0.20434347]
[1766269399542,0.87630639,851.62,850.81,0.20434347]
[1766269399739,0.6670395,851.61,850.81,0.20434347]
[1766269399943,0.6670395,851.6,850.81,0.20434347]
[1766269400144,0.6670395,851.59,850.81,0.20434347]
[1766269400344,0.6670395,851.58,850.81,0.20434347]
[1766269400544,0.6670395,851.57,850.81,0.20434347]
[1766269400742,0.6670395,851.56,850.81,0.20434347]
[1766269400942,0.6670395,851.55,850.81,0.20434347]
[1766269401139,0.6670395,851.54,850.81,0.20434347]
[1766269401343,0.6670395,851.53,850.81,0.20434347]
[1766269401639,0.6670395,851.52,850.81,0.20434347]
[1766269401842,0.6670395,851.51,850.81,0.20434347]
[1766269402041,0.6670395,851.5,850.81,0.20434347]
[1766269402244,0.6670395,851.49,850.81,0.20434347]
[1766269402541,0.6670395,851.48,850.81,0.20434347]
[1766269402744,0.6670395,851.47,850.81,0.20434347]
[1766269403042,0.6670395,851.46,850.81,0.20434347]
[1766269403241,0.6670395,851.45,850.81,0.20434347]
[1766269403447,0.6670395,851.44,850.81,0.20434347]
[1766269403744,0.87630639,851.62,850.81,0.20434347]
[1766269403745,0.6670395,851.43,850.81,0.20434347]
[1766269403942,0.6670395,851.42,850.81,0.20434347]
[1766269404147,0.6670395,851.41,850.81,0.20434347]
[1766269404344,0.6670395,851.4,850.81,0.20434347]
[1766269404543,0.6670395,851.39,850.81,0.20434347]
[1766269404742,0.6670395,851.38,850.81,0.20434347]
[1766269404944,0.6670395,851.37,850.81,0.20434347]
[1766269405147,0.6670395,851.36,850.81,0.20434347]
[1766269405348,0.6670395,851.35,850.81,0.20434347]
[1766269405549,0.87630639,851.62,850.81,0.20434347]
[1766269405744,0.66703946,851.61,850.81,0.20434347]
[1766269406044,0.66703946,851.6,850.81,0.20434347]
[1766269406244,0.66703946,851.59,850.81,0.20434347]
[1766269406447,0.66703946,851.58,850.81,0.20434347]
[1766269406644,0.66703946,851.57,850.81,0.20434347]
[1766269406848,0.66703946,851.56,850.81,0.20434347]
[1766269407048,0.66703946,851.55,850.81,0.20434347]
[1766269407248,0.66703946,851.54,850.81,0.20434347]
[1766269407444,0.66703946,851.53,850.81,0.20434347]
[1766269407746,4.67947747,851.52,850.81,0.20434347]
[1766269407944,0.66703946,851.51,850.81,0.20434347]
[1766269408149,0.66703946,851.5,850.81,0.20434347]
[1766269408349,0.66703946,851.49,850.81,0.20434347]
[1766269408646,0.66703946,851.48,850.81,0.20434347]
[1766269408844,0.66703946,851.47,850.81,0.20434347]
[1766269409048,0.66703946,851.46,850.81,0.20434347]
[1766269409249,0.66703946,851.45,850.81,0.20434347]
[1766269409449,0.66703946,851.44,850.81,0.20434347]
[1766269409649,0.66703946,851.43,850.81,0.20434347]
[1766269409849,0.66703946,851.42,850.81,0.20434347]
[1766269410049,0.66703946,851.41,850.81,0.20434347]
[1766269410348,0.66703946,851.4,850.81,0.20434347]
[1766269410546,0.66703946,851.39,850.81,0.20434347]
[1766269410844,0.66703946,851.38,850.81,0.20434347]
[1766269411151,0.66703946,851.37,850.81,0.20434347]
[1766269411449,0.66703946,851.36,850.81,0.20434347]
[1766269411749,0.66703946,851.35,850.81,0.20434347]
[1766269412046,4.01243801,851.52,850.81,0.20434347]
[1766269412244,0.66703938,851.51,850.81,0.20434347]
[1766269412450,0.66703938,851.5,850.81,0.20434347]
[1766269412648,0.66703938,851.49,850.81,0.20434347]
[1766269412851,0.66703938,851.48,850.81,0.20434347]
[1766269413051,0.66703938,851.47,850.81,0.20434347]
[1766269413351,0.66703938,851.46,850.81,0.20434347]
[1766269413646,0.66703938,851.45,850.81,0.20434347]
[1766269413948,0.66703938,851.44,850.81,0.20434347]
[1766269414146,0.66703938,851.43,850.81,0.20434347]
[1766269414351,0.66703938,851.42,850.81,0.20434347]
[1766269414548,0.66703938,851.41,850.81,0.20434347]
[1766269414748,0.66703938,851.4,850.81,0.20434347]
[1766269414953,0.66703938,851.39,850.81,0.20434347]
[1766269415154,0.66703938,851.38,850.81,0.20434347]
[1766269415350,0.66703938,851.37,850.81,0.20434347]
[1766269415550,0.66703938,851.36,850.81,0.20434347]
[1766269415750,0.66703938,851.35,850.81,0.20434347]
[1766269415954,4.01243801,851.52,850.81,0.20434347]
[1766269416254,0.66703932,851.51,850.81,0.20434347]
[1766269416456,0.66703932,851.5,850.81,0.20434347]
[1766269416652,0.66703932,851.49,850.81,0.20434347]
[1766269416854,0.66703932,851.48,850.81,0.20434347]
[1766269417052,0.66703932,851.47,850.81,0.20434347]
[1766269417251,0.66703932,851.46,850.81,0.20434347]
[1766269417455,0.66703932,851.45,850.81,0.20434347]
[1766269417656,0.66703932,851.44,850.81,0.20434347]
[1766269417856,0.66703932,851.43,850.81,0.20434347]
[1766269418056,0.66703932,851.42,850.81,0.20434347]
[1766269418353,0.66703932,851.41,850.81,0.20434347]
[1766269418557,0.66703932,851.4,850.81,0.20434347]
[1766269418756,0.66703932,851.39,850.81,0.20434347]
[1766269418954,0.66703932,851.38,850.81,0.20434347]
[1766269419158,0.66703932,851.37,850.81,0.20434347]
[1766269419454,0.66703932,851.36,850.81,0.20434347]
[1766269419658,0.66703932,851.35,850.81,0.20434347]
[1766269419858,4.01243801,851.52,850.81,0.20434347]
[1766269420059,0.66703952,851.51,850.81,0.20434347]
[1766269420258,0.66703952,851.5,850.81,0.20434347]
[1766269420455,0.66703952,851.49,850.81,0.20434347]
[1766269420660,0.66703952,851.48,850.81,0.20434347]
[1766269420860,0.66703952,851.47,850.81,0.20434347]
[1766269421056,0.66703952,851.46,850.81,0.20434347]
[1766269421360,0.66703952,851.45,850.81,0.20434347]
[1766269421661,0.66703952,851.44,850.81,0.20434347]
[1766269421861,0.66703952,851.43,850.81,0.20434347]
[1766269422062,0.66703952,851.42,850.81,0.20434347]
[1766269422258,0.66703952,851.41,850.81,0.20434347]
[1766269422559,4.01243801,851.52,850.81,0.20434347]
[1766269423963,0.66703897,851.51,850.81,0.20434347]
[1766269424262,0.66703897,851.5,850.81,0.20434347]
[1766269424464,0.66703897,851.49,850.81,0.20434347]
[1766269424659,0.66703897,851.48,850.81,0.20434347]
[1766269424959,0.66703897,851.47,850.81,0.20434347]
[1766269425259,0.66703897,851.46,850.81,0.20434347]
[1766269425463,4.01243801,851.52,850.81,0.20434347]
[1766269425464,0.66703897,851.45,850.81,0.20434347]
[1766269425664,0.66703897,851.44,850.81,0.20434347]
[1766269425864,4.01243801,851.52,850.81,0.20434347]
[1766269425865,0.66703897,851.43,850.81,0.20434347]
[1766269426064,0.66703897,851.42,850.81,0.20434347]
[1766269426264,0.66703897,851.41,850.81,0.20434347]
[1766269426464,0.66703897,851.4,850.81,0.20434347]
[1766269426665,0.66703897,851.39,850.81,0.20434347]
[1766269426862,0.66703897,851.38,850.81,0.20434347]
[1766269427162,0.66703897,851.37,850.81,0.20434347]
[1766269427363,0.66703897,851.36,850.81,0.20434347]
[1766269427561,0.66703897,851.35,850.81,0.20434347]
[1766269427763,4.01243801,851.52,850.81,0.20434347]
[1766269427966,0.66703859,851.51,850.81,0.20434347]
[1766269428164,0.66703859,851.5,850.81,0.20434347]
[1766269428364,0.66703859,851.49,850.81,0.20434347]
[1766269428564,0.66703859,851.48,850.81,0.20434347]
[1766269428767,0.66703859,851.47,850.81,0.20434347]
[1766269429063,4.01243801,851.52,850.81,0.20434347]
[1766269429064,0.66703859,851.46,850.81,0.20434347]
[1766269429267,0.66703859,851.45,850.81,0.20434347]
[1766269429564,0.66703859,851.44,850.81,0.20434347]
[1766269429867,0.66703859,851.43,850.81,0.20434347]
[1766269430163,0.66703859,851.42,850.81,0.20434347]
[1766269430367,0.66703859,851.41,850.81,0.20434347]
[1766269430564,0.66703859,851.4,850.81,0.20434347]
[1766269430768,0.66703859,851.39,850.81,0.20434347]
[1766269430975,0.66703859,851.38,850.81,0.20434347]
[1766269431171,0.66703859,851.37,850.81,0.20434347]
[1766269431468,0.66703859,851.36,850.81,0.20434347]
[1766269431671,0.66703859,851.35,850.81,0.20434347]
[1766269431871,4.01243801,851.52,850.81,0.20434347]
[1766269432072,0.66643212,851.51,850.81,0.20434347]
[1766269432268,0.66643212,851.5,850.81,0.20434347]
[1766269432469,0.66643212,851.49,850.81,0.20434347]
[1766269432674,0.66643212,851.48,850.81,0.20434347]
[1766269432871,0.66643212,851.47,850.81,0.20434347]
[1766269433069,0.66643212,851.46,850.81,0.20434347]
[1766269433273,0.66643212,851.45,850.81,0.20434347]
[1766269433477,0.66643212,851.44,850.81,0.20434347]
[1766269433671,0.66643212,851.43,850.81,0.20434347]
[1766269433876,0.66643212,851.42,850.81,0.20434347]
[1766269434176,0.66643212,851.41,850.81,0.20434347]
[1766269434476,0.66643212,851.4,850.81,0.20434347]
[1766269434672,0.66643212,851.39,850.81,0.20434347]
[1766269434874,0.66643212,851.38,850.81,0.20434347]
[1766269435076,0.66643212,851.37,850.81,0.20434347]
[1766269435273,0.66643212,851.36,850.81,0.20434347]
[1766269435473,0.66643212,851.35,850.81,0.20434347]
[1766269435677,4.01243801,851.52,850.81,0.20434347]
[1766269435876,0.66643222,851.51,850.81,0.20434347]
[1766269436174,0.66643222,851.5,850.81,0.20434347]
[1766269436377,0.66643222,851.49,850.81,0.20434347]
[1766269436577,0.66643222,851.48,850.81,0.20434347]
[1766269436778,0.66643222,851.47,850.81,0.20434347]
[1766269436973,0.66643222,851.46,850.81,0.20434347]
[1766269437176,0.66643222,851.45,850.81,0.20434347]
[1766269437375,0.66643222,851.44,850.81,0.20434347]
[1766269437576,0.66643222,851.43,850.81,0.20434347]
[1766269437775,0.66643222,851.42,850.81,0.20434347]
[1766269437976,0.66643222,851.41,850.81,0.20434347]
[1766269438180,0.66643222,851.4,850.81,0.20434347]
[1766269438377,0.66643222,851.39,850.81,0.20434347]
[1766269438680,0.66643222,851.38,850.81,0.20434347]
[1766269438878,0.66643222,851.37,850.81,0.20434347]
[1766269439078,4.01243801,851.52,850.81,0.20434347]
[1766269439079,0.66643222,851.36,850.81,0.20434347]
[1766269439279,0.66643222,851.35,850.81,0.20434347]
[1766269439479,4.01243801,851.52,850.81,0.20434347]
[1766269439683,0.66643241,851.51,850.81,0.20434347]
[1766269439882,0.66643241,851.5,850.81,0.20434347]
[1766269440080,0.66643241,851.49,850.81,0.20434347]
[1766269440284,0.66643241,851.48,850.81,0.20434347]
[1766269440485,0.66643241,851.47,850.81,0.20434347]
[1766269440681,0.66643241,851.46,850.81,0.20434347]
[1766269440882,0.66643241,851.45,850.81,0.20434347]
[1766269441084,0.66643241,851.44,850.81,0.20434347]
[1766269441282,0.66643241,851.43,850.81,0.20434347]
[1766269441584,0.66643241,851.42,850.81,0.20434347]
[1766269441882,0.66643241,851.41,850.81,0.20434347]
[1766269442084,0.66643241,851.4,850.81,0.20434347]
[1766269442285,4.01243801,851.52,850.81,0.20434347]
[1766269442286,0.66643241,851.39,850.81,0.20434347]
[1766269442484,0.66643241,851.38,850.81,0.20434347]
[1766269442682,0.66643241,851.37,850.81,0.20434347]
[1766269442882,0.66643241,851.36,850.81,0.20434347]
[1766269443085,0.66643241,851.35,850.81,0.20434347]
[1766269443286,4.01243801,851.52,850.81,0.20434347]
[1766269443482,0.6664325,851.51,850.81,0.20434347]
[1766269443782,0.6664325,851.5,850.81,0.20434347]
[1766269443986,0.6664325,851.49,850.81,0.20434347]
[1766269444186,0.6664325,851.48,850.81,0.20434347]
[1766269444485,0.6664325,851.47,850.81,0.20434347]
[1766269444685,0.6664325,851.46,850.81,0.20434347]
[1766269444885,0.6664325,851.45,850.81,0.20434347]
[1766269445081,0.6664325,851.44,850.81,0.20434347]
[1766269445282,0.6664325,851.43,850.81,0.20434347]
[1766269445580,0.6664325,851.42,850.81,0.20434347]
[1766269445783,0.6664325,851.41,850.81,0.20434347]
[1766269445983,0.6664325,851.4,850.81,0.20434347]
[1766269446182,0.6664325,851.39,850.81,0.20434347]
[1766269446385,0.6664325,851.38,850.81,0.20434347]
[1766269446686,0.6664325,851.37,850.81,0.20434347]
[1766269446884,0.6664325,851.36,850.81,0.20434347]
[1766269447083,0.6664325,851.35,850.81,0.20434347]
[1766269447286,4.01243801,851.52,850.81,0.20434347]
[1766269447483,0.66643223,851.51,850.81,0.20434347]
[1766269447687,0.66643223,851.5,850.81,0.20434347]
[1766269447888,0.66643223,851.49,850.81,0.20434347]
[1766269448183,0.66643223,851.48,850.81,0.20434347]
[1766269448387,0.66643223,851.47,850.81,0.20434347]
[1766269448581,0.66643223,851.46,850.81,0.20434347]
[1766269448786,0.66643223,851.45,850.81,0.20434347]
[1766269448987,0.66643223,851.44,850.81,0.20434347]
[1766269449285,0.66643223,851.43,850.81,0.20434347]
[1766269449484,0.66643223,851.42,850.81,0.20434347]
[1766269449687,0.66643223,851.41,850.81,0.20434347]
[1766269449885,0.66643223,851.4,850.81,0.20434347]
[1766269450088,0.66643223,851.39,850.81,0.20434347]
[1766269450389,0.66643223,851.38,850.81,0.20434347]
[1766269450688,0.66643223,851.37,850.81,0.20434347]
[1766269450887,0.66643223,851.36,850.81,0.20434347]
[1766269451084,0.66643223,851.35,850.81,0.20434347]
[1766269451386,4.01243801,851.52,850.81,0.20434347]
[1766269451583,0.66643209,851.51,850.81,0.20434347]
[1766269451788,0.66643209,851.5,850.81,0.20434347]
[1766269452088,0.66643209,851.49,850.81,0.20434347]
[1766269452285,0.66643209,851.48,850.81,0.20434347]
[1766269452489,0.66643209,851.47,850.81,0.20434347]
[1766269452690,0.66643209,851.46,850.81,0.20434347]
[1766269452987,0.66643209,851.45,850.81,0.20434347]
[1766269453185,0.66643209,851.44,850.81,0.20434347]
[1766269453387,0.66643209,851.43,850.81,0.20434347]
[1766269453590,0.66643209,851.42,850.81,0.20434347]
[1766269453792,0.66643209,851.41,850.81,0.20434347]
[1766269454088,0.66643209,851.4,850.81,0.20434347]
[1766269454391,0.66643209,851.39,850.81,0.20434347]
[1766269454588,0.66643209,851.38,850.81,0.20434347]
[1766269454791,0.66643209,851.37,850.81,0.20434347]
[1766269454992,0.66643209,851.36,850.81,0.20434347]
[1766269455192,0.66643209,851.35,850.81,0.20434347]
[1766269455387,4.01243801,851.52,850.81,0.20434347]
[1766269455591,0.66643193,851.51,850.81,0.20434347]
[1766269455887,0.66643193,851.5,850.81,0.20434347]
[1766269456089,0.66643193,851.49,850.81,0.20434347]
[1766269456292,0.66643193,851.48,850.81,0.20434347]
[1766269456589,0.66643193,851.47,850.81,0.20434347]
[1766269456793,0.66643193,851.46,850.81,0.20434347]
[1766269457092,0.66643193,851.45,850.81,0.20434347]
[1766269457292,0.66643193,851.44,850.81,0.20434347]
[1766269457489,0.66643193,851.43,850.81,0.20434347]
[1766269457688,0.66643193,851.42,850.81,0.20434347]
[1766269457990,0.66643193,851.41,850.81,0.20434347]
[1766269458191,0.66643193,851.4,850.81,0.20434347]
[1766269458388,0.66643193,851.39,850.81,0.20434347]
[1766269458590,0.66643193,851.38,850.81,0.20434347]
[1766269458792,0.66643193,851.37,850.81,0.20434347]
[1766269458991,0.66643193,851.36,850.81,0.20434347]
[1766269459193,4.01243801,851.52,850.81,0.20434347]
[1766269459392,0.66578802,851.51,850.81,0.20434347]
[1766269459591,0.66578802,851.5,850.81,0.20434347]
[1766269459794,0.66578802,851.49,850.81,0.20434347]
[1766269459992,0.66578802,851.48,850.81,0.20434347]
[1766269460191,0.66578802,851.47,850.81,0.20434347]
[1766269460395,0.66578802,851.46,850.81,0.20434347]
[1766269460694,0.66578802,851.45,850.81,0.20434347]
[1766269460895,0.66578815,851.44,850.81,0.20434347]
[1766269461092,0.66578815,851.43,850.81,0.20434347]
[1766269461292,0.66578815,851.42,850.81,0.20434347]
[1766269461491,0.66578815,851.41,850.81,0.20434347]
[1766269461694,0.66578815,851.4,850.81,0.20434347]
[1766269461892,0.66578815,851.39,850.81,0.20434347]
[1766269462191,0.66578815,851.38,850.81,0.20434347]
[1766269462394,0.66578815,851.37,850.81,0.20434347]
[1766269462595,0.66578815,851.36,850.81,0.20434347]
[1766269462792,4.01243801,851.52,850.81,0.20434347]
[1766269462998,0.66578822,851.51,850.81,0.20434347]
[1766269463297,0.66578822,851.5,850.81,0.20434347]
[1766269463496,0.66578822,851.49,850.81,0.20434347]
[1766269463797,0.66578822,851.48,850.81,0.20434347]
[1766269464094,0.66578822,851.47,850.81,0.20434347]
[1766269464398,0.66578822,851.46,850.81,0.20434347]
[1766269464595,0.66578822,851.45,850.81,0.20434347]
[1766269464796,0.66578822,851.44,850.81,0.20434347]
[1766269464996,0.66578822,851.43,850.81,0.20434347]
[1766269465296,0.66578822,851.42,850.81,0.20434347]
[1766269465496,4.01243801,851.52,850.81,0.20434347]
[1766269465497,0.66578822,851.41,850.81,0.20434347]
[1766269465797,0.66578822,851.4,850.81,0.20434347]
[1766269465999,0.66578822,851.39,850.81,0.20434347]